lending/lending_fUSD_20260110
["ID","MTS","AMOUNT","RATE_DAILY","PERIOD"]
[401256504,1768079044184,-194.80628874,0.00030136,120]
[401256505,1768079044248,-195.0,0.00030137,120]
[401256506,1768079044311,-4000.0,0.00030137,120]
[401256507,1768079044373,-195.06981832,0.00030138,110]
[401256508,1768079044436,-174.3607648,0.00030138,30]
[401256509,1768079044499,-250.0,0.000308,30]
[401256510,1768079044557,-204.0,0.0003084,30]
[401256511,1768079044624,-3932.59,0.00031,30]
[401256512,1768079044692,-38001.34282082,0.000314,30]
[401256513,1768079044758,-500.0,0.000314,120]
[401256514,1768079044824,-473.72,0.00031507,120]
[401256515,1768079044891,-1629.62,0.00031723,30]
[401256516,1768079044955,-161.97298062,0.00032,30]
[401256517,1768079045021,-650.0,0.00032,30]
[401256518,1768079045088,-250.0,0.00032,30]
[401256519,1768079045152,-250.0,0.00032,30]
[401256520,1768079045216,-250.0,0.00032,30]
[401256521,1768079045281,-250.0,0.00032,30]
[401256522,1768079045345,-250.0,0.00032,30]
[401256523,1768079045412,-191.84269647,0.00032,120]
[401256524,1768079045479,-250.0,0.00032,30]
[401256525,1768079045544,-250.0,0.00032,30]
[401256526,1768079045607,-166.52306818,0.00032,120]
[401256527,1768079045672,-190.40318906,0.00032,120]
[401256528,1768079045736,-178.41968,0.00032,120]
[401256529,1768079045801,-1840.42315136,0.00032,120]
[401256530,1768079045866,-224.64778894,0.00032,120]
[401256531,1768079045929,-293.38939066,0.00032,120]
[401256532,1768079045993,-190.43580049,0.00032,120]
[401256533,1768079046055,-1658.65,0.00032,120]
[401256534,1768079046118,-3932.59,0.00032,30]
[401256535,1768079046184,-2663.59405198,0.00032,120]
[401256536,1768079046250,-23196.07,0.000323,120]
[401256537,1768079046312,-493.0,0.000324,120]
[401256538,1768079046375,-250.0,0.000325,30]
[401256539,1768079046437,-250.0,0.000325,30]
[401256540,1768079046501,-250.0,0.000325,30]
[401256541,1768079046563,-250.0,0.000325,30]
[401256542,1768079046623,-250.0,0.000325,30]
[401256543,1768079047258,-250.0,0.000325,30]
[401256544,1768079047319,-250.0,0.000325,30]
[401256545,1768079047379,-528.73525303,0.0003286,120]
[401256546,1768079047438,-204.0,0.0003286,30]
[401256547,1768079047497,-398.0,0.00032877,30]
[401256548,1768079047556,-151.0,0.00032877,31]
[401256549,1768079047615,-151.0,0.00032877,31]
[401256550,1768079047673,-151.0,0.00032877,31]
[401256551,1768079047732,-151.0,0.00032877,31]
[401256552,1768079047790,-151.0,0.00032877,31]
[401256553,1768079047848,-151.0,0.00032877,31]
[401256554,1768079047908,-151.0,0.00032877,31]
[401256555,1768079047970,-151.0,0.00032877,31]
[401256556,1768079048030,-151.0,0.00032877,31]
[401256557,1768079048093,-151.0,0.00032877,31]
[401256558,1768079048157,-151.0,0.00032877,31]
[401256559,1768079048222,-151.0,0.00032877,31]
[401256560,1768079048284,-151.0,0.00032877,31]
[401256561,1768079048346,-151.0,0.00032877,31]
[401256562,1768079048409,-151.0,0.00032877,31]
[401256563,1768079048477,-151.0,0.00032877,31]
[401256564,1768079048543,-192.313076,0.00032877,31]
[401256565,1768079048608,-557.89,0.00032877,120]
[401256566,1768079048673,-527.96,0.00032877,120]
[401256567,1768079048738,-500.0,0.00032877,30]
[401256568,1768079048806,-148935.43867145,0.000329,30]
[401256569,1768079048871,-56053.2972066,0.000329,30]
[401256570,1768079048936,-500.0,0.00032904,30]
[401256571,1768079049001,-500.0,0.00032932,30]
[401256572,1768079049070,-500.0,0.00032959,30]
[401256573,1768079049140,-915.13,0.00033,120]
[401256574,1768079049204,-250.0,0.00033,30]
[401256575,1768079049268,-250.0,0.00033,30]
[401256576,1768079049331,-250.0,0.00033,30]
[401256577,1768079049397,-250.0,0.00033,30]
[401256578,1768079049462,-250.0,0.00033,30]
[401256579,1768079049524,-2700.414733,0.00033,120]
[401256580,1768079049589,-170.76112702,0.00033,60]
[401256581,1768079049651,-196.53868712,0.00033,120]
[401256582,1768079049715,-250.0,0.00033,30]
[401256583,1768079049776,-200.0,0.00033,120]
[401256584,1768079049838,-166.52306818,0.00033,120]
[401256585,1768079049902,-190.40318906,0.00033,120]
[401256586,1768079049965,-1840.42315136,0.00033,120]
[401256587,1768079050029,-293.38939066,0.00033,120]
[401256588,1768079050093,-190.43580049,0.00033,120]
[401256589,1768079050157,-3932.59,0.00033,30]
[401256590,1768079050223,-23620.54004902,0.000331,30]
[401256591,1768079050286,-2000.0,0.00033358,120]
[401256592,1768079050349,-250.0,0.000335,30]
[401256593,1768079050409,-250.0,0.000335,30]
[401256594,1768079050470,-250.0,0.000335,30]
[401256595,1768079050531,-250.0,0.000335,30]
[401256596,1768079050592,-250.0,0.000335,30]
[401256597,1768079050654,-250.0,0.000335,30]
[401256598,1768079050714,-2005.795,0.000335,30]
[401256599,1768079050772,-252.0,0.00033567,30]
[401256600,1768079050831,-6530.14,0.000337,30]
[401256601,1768079050892,-166.52306818,0.000339,120]
[401256602,1768079050951,-190.40318906,0.000339,120]
[401256603,1768079051017,-1840.42315136,0.000339,120]
[401256604,1768079051079,-293.38939066,0.000339,120]
[401256605,1768079051143,-190.43580049,0.000339,120]
[401256606,1768079051206,-847.00966701,0.00033939,60]
[401256607,1768079051269,-200.0,0.00034,120]
[401256608,1768079051336,-3932.59,0.00034,30]
[401256609,1768079051398,-500.0,0.00034,120]
[401256610,1768079051458,-2887.65621031,0.000345,60]
[401256611,1768079051519,-1000.0,0.000348,30]
[401256612,1768079051579,-1444.0,0.00034849,120]
[401256613,1768079051640,-6506.51990744,0.00034852,60]
[401256614,1768079051699,-2000.0,0.00034858,120]
[401256615,1768079051759,-1036.66917896,0.0003488,120]
[401256616,1768079051819,-204.0,0.0003488,30]
[401256617,1768079051884,-504.91565696,0.000349,120]
[401256618,1768079051946,-1000.0,0.00035,30]
[401256619,1768079052007,-627.53876887,0.00035,30]
[401256620,1768079052066,-2000.0,0.00035,30]
[401256621,1768079052126,-570.64334895,0.00035,30]
[401256622,1768079052189,-502.46,0.00035,30]
[401256623,1768079052249,-1000.0,0.00035,30]
[401256624,1768079052309,-500.0,0.00035,30]
[401256625,1768079052369,-500.0,0.00035,30]
[401256626,1768079052431,-2242.01716518,0.00035,30]
[401256627,1768079052491,-150.0,0.00035,60]
[401256628,1768079052549,-1777.82327832,0.00035,120]
[401256629,1768079052768,-1000.0,0.00035,30]
[401256630,1768079052832,-166.52306818,0.00035,120]
[401256631,1768079052896,-190.40318906,0.00035,120]
[401256632,1768079052958,-1840.42315136,0.00035,120]
[401256633,1768079053020,-293.38939066,0.00035,120]
[401256634,1768079053083,-190.43580049,0.00035,120]
[401256635,1768079053146,-21116.17331232,0.00035,30]
[401256636,1768079053210,-9837.24212444,0.00035,30]
[401256637,1768079053274,-3932.59,0.00035,30]
[401256638,1768079053337,-500.0,0.00035,120]
[401256639,1768079053400,-15826.65629779,0.00035,30]
[401256640,1768079053463,-1949.00682732,0.00035,60]
[401256641,1768079053526,-2341.51457854,0.00035,120]
[401256642,1768079053589,-180.0,0.00035068,120]
[401256643,1768079053651,-2633.3455,0.0003522,30]
[401256644,1768079053714,-311.34467744,0.00035421,120]
[401256645,1768079053774,-473.72,0.00035445,120]
[401256646,1768079053835,-420.92844374,0.00035555,30]
[401256647,1768079053897,-361.33541014,0.00035616,103]
[401256648,1768079053959,-271.60537758,0.00035616,115]
[401256649,1768079054020,-204.993149,0.00035616,86]
[401256650,1768079054081,-203.70403319,0.00035616,81]
[401256651,1768079054143,-459.0,0.00035616,89]
[401256652,1768079054207,-636.3,0.00035616,72]
[401256653,1768079054270,-200.1,0.00035616,55]
[401256654,1768079054333,-362.92767532,0.00035616,107]
[401256655,1768079054395,-546.04059754,0.00035616,74]
[401256656,1768079054458,-614.7,0.00035616,41]
[401256657,1768079054522,-571.8,0.00035616,39]
[401256658,1768079054587,-506.1,0.00035616,46]
[401256659,1768079054648,-745.8,0.00035616,31]
[401256660,1768079054709,-735.6,0.00035616,46]
[401256661,1768079054769,-545.1,0.00035616,33]
[401256662,1768079054830,-209.98380685,0.00035616,38]
[401256663,1768079054889,-678.6,0.00035616,38]
[401256664,1768079054950,-174.53676137,0.00035616,42]
[401256665,1768079055009,-459.37735227,0.00035616,43]
[401256666,1768079055071,-582.3,0.00035616,39]
[401256667,1768079055136,-518.4,0.00035616,50]
[401256668,1768079055196,-500.0,0.00035616,60]
[401256669,1768079055262,-2323.59,0.00035616,120]
[401256670,1768079055322,-303.440841,0.00035616,31]
[401256671,1768079055381,-303.440841,0.00035616,31]
[401256672,1768079055441,-303.440841,0.00035616,31]
[401256673,1768079055502,-303.440841,0.00035616,31]
[401256674,1768079055563,-303.440841,0.00035616,31]
[401256675,1768079055625,-303.440841,0.00035616,31]
[401256676,1768079055685,-303.440841,0.00035616,31]
[401256677,1768079055743,-303.440841,0.00035616,31]
[401256678,1768079055801,-303.440841,0.00035616,31]
[401256679,1768079055860,-303.440841,0.00035616,31]
[401256680,1768079055920,-303.440841,0.00035616,31]
[401256681,1768079055981,-303.440841,0.00035616,31]
[401256682,1768079056041,-303.440841,0.00035616,31]
[401256683,1768079056102,-303.440841,0.00035616,31]
[401256684,1768079056165,-303.440841,0.00035616,31]
[401256685,1768079056227,-303.440841,0.00035616,31]
[401256686,1768079056287,-303.440841,0.00035616,31]
[401256687,1768079056347,-303.440841,0.00035616,31]
[401256688,1768079056406,-303.440841,0.00035616,31]
[401256689,1768079056468,-303.440834,0.00035616,31]
[401256690,1768079056528,-500.0,0.00035671,60]
[401256691,1768079056589,-500.0,0.00035726,60]
[401256692,1768079056648,-500.0,0.0003578,60]
[401256693,1768079056708,-500.0,0.00035835,60]
[401256694,1768079056771,-1019.71624,0.00035888,30]
[401256695,1768079056830,-500.0,0.0003589,60]
[401256696,1768079056889,-500.0,0.00035945,60]
[401256697,1768079056951,-1000.0,0.0003595,30]
[401256698,1768079057009,-500.0,0.00036,60]
[401256699,1768079057068,-503.44,0.00036,30]
[401256700,1768079057128,-3116.0,0.00036,30]
[401256701,1768079057193,-1501.0,0.00036,30]
[401256702,1768079057256,-500.0,0.00036,120]
[401256703,1768079057315,-2370.0,0.00036,30]
[401256704,1768079057375,-166.52306818,0.00036,120]
[401256705,1768079057435,-190.40318906,0.00036,120]
[401256706,1768079057494,-1840.42315136,0.00036,120]
[401256707,1768079057553,-293.38939066,0.00036,120]
[401256708,1768079057614,-190.43580049,0.00036,120]
[401256709,1768079057676,-202.0,0.00036,120]
[401256710,1768079057737,-2185.0,0.00036,120]
[401256711,1768079057795,-3932.59,0.00036,30]
[401256712,1768079057852,-600.0,0.00036,120]
[401256713,1768079057912,-600.0,0.00036,120]
[401256714,1768079057969,-678.57,0.00036,120]
[401256715,1768079058026,-1629.62,0.00036049,30]
[401256716,1768079058080,-500.0,0.00036054,60]
[401256717,1768079058139,-152.0,0.00036086,30]
[401256718,1768079058202,-1019.71624,0.00036088,30]
[401256719,1768079058265,-833.31,0.000361,120]
[401256720,1768079058325,-746.5045,0.000361,120]
[401256721,1768079058383,-500.0,0.00036109,60]
[401256722,1768079058440,-500.0,0.00036164,60]
[401256723,1768079058497,-500.0,0.00036219,60]
[401256724,1768079058706,-500.0,0.00036274,60]
[401256725,1768079058770,-1019.71624,0.00036288,30]
[401256726,1768079058827,-500.0,0.00036328,60]
[401256727,1768079058884,-214.944542,0.00036358,120]
[401256728,1768079058942,-427.9007874,0.00036383,60]
[401256729,1768079059001,-152.0,0.00036474,31]
[401256730,1768079059060,-1019.71624,0.00036488,30]
[401256731,1768079059119,-1019.71624,0.00036688,30]
[401256732,1768079059185,-2323.59,0.00036712,120]
[401256733,1768079059246,-503.44,0.0003672,30]
[401256734,1768079059308,-152.0,0.00036862,32]
[401256735,1768079059369,-29611.98972504,0.00036888,60]
[401256736,1768079059431,-1019.71624,0.00036888,30]
[401256737,1768079059492,-204.0,0.0003689,30]
[401256738,1768079059550,-162.0,0.00037,120]
[401256739,1768079059607,-1000.0,0.00037,45]
[401256740,1768079059663,-151.78987322,0.00037,120]
[401256741,1768079059720,-3932.59,0.00037,30]
[401256742,1768079059774,-6614.1723867,0.00037,30]
[401256743,1768079059827,-1019.71624,0.00037088,30]
[401256744,1768079059881,-19244.98690465,0.000372,120]
[401256745,1768079059935,-19244.98690464,0.000372,120]
[401256746,1768079059990,-19244.98690464,0.000372,120]
[401256747,1768079060046,-19244.98690464,0.000372,120]
[401256748,1768079060103,-19244.98690464,0.000372,120]
[401256749,1768079060158,-152.0,0.00037249,33]
[401256750,1768079060214,-1019.71624,0.00037288,30]
[401256751,1768079060265,-503.44,0.0003744,30]
[401256752,1768079060317,-1019.71624,0.00037488,30]
[401256753,1768079060372,-188.0,0.000375,120]
[401256754,1768079060427,-152.0,0.00037637,34]
[401256755,1768079060482,-1019.71624,0.00037688,30]
[401256756,1768079060533,-414.10700687,0.0003777,120]
[401256757,1768079060584,-2323.59,0.00037808,120]
[401256758,1768079060634,-1019.71624,0.00037888,30]
[401256759,1768079060685,-200.0,0.00038,60]
[401256760,1768079060735,-909.12083436,0.00038,120]
[401256761,1768079060781,-500.0,0.00038,120]
[401256762,1768079060830,-648196.6041685,0.00038,30]
[401256763,1768079060881,-500.0,0.00038,61]
[401256764,1768079060934,-4986.42458567,0.00038,120]
[401256765,1768079060989,-3932.59,0.00038,30]
[401256766,1768079061041,-3001.23988252,0.00038,120]
[401256767,1768079061095,-169.0,0.00038,30]
[401256768,1768079061147,-152.0,0.00038025,35]
[401256769,1768079061198,-1019.71624,0.00038088,30]
[401256770,1768079061246,-50000.0,0.000381,120]
[401256771,1768079061294,-503.44,0.0003816,30]
[401256772,1768079061344,-1800.0,0.00038264,31]
[401256773,1768079061396,-1019.71624,0.00038288,30]
[401256774,1768079061450,-172.38,0.00038356,120]
[401256775,1768079061503,-828.0,0.00038356,60]
[401256776,1768079061554,-1000.0,0.00038356,120]
[401256777,1768079061603,-292.5,0.00038356,120]
[401256778,1768079061656,-1000.0,0.00038383,120]
[401256779,1768079061704,-1000.0,0.0003841,120]
[401256780,1768079061758,-828.0,0.00038411,60]
[401256781,1768079061808,-1000.0,0.00038438,120]
[401256782,1768079061855,-1000.0,0.00038465,120]
[401256783,1768079061905,-828.0,0.00038466,60]
[401256784,1768079061956,-1019.71624,0.00038488,30]
[401256785,1768079062007,-1000.0,0.00038493,120]
[401256786,1768079062059,-24038.60751533,0.000385,30]
[401256787,1768079062112,-658.72128005,0.0003852,120]
[401256788,1768079062164,-828.0,0.0003852,60]
[401256789,1768079062217,-828.0,0.00038575,60]
[401256790,1768079062270,-150.0,0.0003861,30]
[401256791,1768079062324,-828.0,0.0003863,60]
[401256792,1768079062378,-828.0,0.00038685,60]
[401256793,1768079062430,-1019.71624,0.00038688,30]
[401256794,1768079062482,-500.0,0.000387,120]
[401256795,1768079062531,-500.0,0.000387,120]
[401256796,1768079062581,-828.0,0.0003874,60]
[401256797,1768079062626,-2036.98,0.00038767,30]
[401256798,1768079062672,-2036.98,0.00038767,30]
[401256799,1768079062719,-2036.98,0.00038767,30]
[401256800,1768079062766,-2036.98,0.00038767,30]
[401256801,1768079062812,-828.0,0.00038794,60]
[401256802,1768079062861,-828.0,0.00038849,60]
[401256803,1768079062914,-503.44,0.0003888,120]
[401256804,1768079062963,-825.15,0.000389,50]
[401256805,1768079063011,-146146.6130207,0.000389,31]
[401256806,1768079063063,-2158.71927347,0.000389,60]
[401256807,1768079063118,-10000.0,0.000389,30]
[401256808,1768079063180,-340.21828513,0.000389,120]
[401256809,1768079063240,-217.15368918,0.000389,30]
[401256810,1768079063299,-18500.70454773,0.000389,31]
[401256811,1768079063357,-828.0,0.00038904,60]
[401256812,1768079063416,-1100.0,0.00038904,120]
[401256813,1768079063477,-2323.59,0.00038904,120]
[401256814,1768079063533,-204.0,0.0003891,30]
[401256815,1768079063621,-828.0,0.00038959,60]
[401256816,1768079063678,-6040.66761861,0.00039,60]
[401256817,1768079063934,-250.0,0.00039,45]
[401256818,1768079063991,-250.0,0.00039,45]
[401256819,1768079064048,-250.0,0.00039,45]
[401256820,1768079064106,-250.0,0.00039,45]
[401256821,1768079064164,-250.0,0.00039,45]
[401256822,1768079064226,-250.0,0.00039,45]
[401256823,1768079064287,-250.0,0.00039,45]
[401256824,1768079064344,-102334.78682474,0.00039,120]
[401256825,1768079064403,-324.15821321,0.00039,120]
[401256826,1768079064462,-250.0,0.00039,45]
[401256827,1768079064523,-250.0,0.00039,45]
[401256828,1768079064580,-250.0,0.00039,45]
[401256829,1768079064640,-250.0,0.00039,45]
[401256830,1768079064696,-250.0,0.00039,45]
[401256831,1768079064753,-250.0,0.00039,45]
[401256832,1768079064808,-250.0,0.00039,45]
[401256833,1768079064862,-250.0,0.00039,45]
[401256834,1768079064919,-250.0,0.00039,45]
[401256835,1768079064978,-169.69523678,0.00039,120]
[401256836,1768079065035,-5300.0,0.00039,120]
[401256837,1768079065093,-21226.87059685,0.00039,120]
[401256838,1768079065149,-50000.0,0.00039,40]
[401256839,1768079065207,-7694.8,0.00039,30]
[401256840,1768079065263,-3932.59,0.00039,30]
[401256841,1768079065317,-2227.50239915,0.00039,120]
[401256842,1768079065373,-600.0,0.00039,120]
[401256843,1768079065429,-600.0,0.00039,120]
[401256844,1768079065486,-828.0,0.00039014,60]
[401256845,1768079065542,-1778.898783,0.00039041,120]
[401256846,1768079065598,-1778.898783,0.00039041,120]
[401256847,1768079065654,-1778.898783,0.00039041,120]
[401256848,1768079065708,-1778.898783,0.00039041,120]
[401256849,1768079065763,-1778.898783,0.00039041,120]
[401256850,1768079065819,-1778.898783,0.00039041,120]
[401256851,1768079065873,-1778.898783,0.00039041,120]
[401256852,1768079065928,-1778.898783,0.00039041,120]
[401256853,1768079065998,-1778.898783,0.00039041,120]
[401256854,1768079066056,-1778.898783,0.00039041,120]
[401256855,1768079066112,-1778.898783,0.00039041,120]
[401256856,1768079066175,-1778.898783,0.00039041,120]
[401256857,1768079066233,-1778.898783,0.00039041,120]
[401256858,1768079066293,-1778.898783,0.00039041,120]
[401256859,1768079066352,-1778.898783,0.00039041,120]
[401256860,1768079066411,-1778.898783,0.00039041,120]
[401256861,1768079066470,-1778.898783,0.00039041,120]
[401256862,1768079066529,-1778.898783,0.00039041,120]
[401256863,1768079066592,-1778.898783,0.00039041,120]
[401256864,1768079066652,-1778.898782,0.00039041,120]
[401256865,1768079066709,-2036.98,0.00039041,30]
[401256866,1768079066767,-2036.98,0.00039041,30]
[401256867,1768079066830,-828.0,0.00039068,60]
[401256868,1768079066889,-1019.71624,0.00039088,30]
[401256869,1768079066950,-828.0,0.00039123,60]
[401256870,1768079067011,-828.0,0.00039178,60]
[401256871,1768079067068,-828.0,0.00039233,60]
[401256872,1768079067125,-828.0,0.00039288,60]
[401256873,1768079067188,-1019.71624,0.00039288,30]
[401256874,1768079067247,-2036.98,0.00039315,30]
[401256875,1768079067307,-2036.98,0.00039315,30]
[401256876,1768079067364,-828.0,0.00039342,60]
[401256877,1768079067421,-473.72,0.00039384,120]
[401256878,1768079067480,-828.0,0.00039397,60]
[401256879,1768079067539,-828.0,0.00039452,60]
[401256880,1768079067597,-1100.0,0.00039452,120]
[401256881,1768079067656,-619.17976855,0.00039454,120]
[401256882,1768079067717,-1019.71624,0.00039488,30]
[401256883,1768079067774,-250.0,0.000395,45]
[401256884,1768079067836,-250.0,0.000395,45]
[401256885,1768079067893,-250.0,0.000395,45]
[401256886,1768079067955,-250.0,0.000395,45]
[401256887,1768079068015,-250.0,0.000395,45]
[401256888,1768079068073,-250.0,0.000395,45]
[401256889,1768079068132,-250.0,0.000395,45]
[401256890,1768079068194,-250.0,0.000395,45]
[401256891,1768079068254,-250.0,0.000395,45]
[401256892,1768079068315,-250.0,0.000395,45]
[401256893,1768079068375,-250.0,0.000395,45]
[401256894,1768079068432,-250.0,0.000395,45]
[401256895,1768079068490,-250.0,0.000395,45]
[401256896,1768079068549,-250.0,0.000395,45]
[401256897,1768079068613,-250.0,0.000395,45]
[401256898,1768079068672,-828.0,0.00039507,60]
[401256899,1768079068732,-828.0,0.00039561,60]
[401256900,1768079068789,-2036.98,0.00039589,30]
[401256901,1768079068847,-2036.98,0.00039589,30]
[401256902,1768079068903,-503.44,0.000396,120]
[401256903,1768079068959,-830.68930915,0.00039616,60]
[401256904,1768079069012,-1019.71624,0.00039688,30]
[401256905,1768079069064,-498927.81230645,0.000397,30]
[401256906,1768079069121,-1786.83736406,0.000397,30]
[401256907,1768079069183,-3299.88,0.000398,90]
[401256908,1768079069240,-6983.673,0.000398,120]
[401256909,1768079069298,-1140.471,0.00039827,56]
[401256910,1768079069615,-2036.98,0.00039863,30]
[401256911,1768079069670,-2036.98,0.00039863,30]
[401256912,1768079069728,-557.0,0.00039863,120]
[401256913,1768079069794,-1019.71624,0.00039888,30]
[401256914,1768079069848,-2000.0,0.000399,60]
[401256915,1768079069904,-10073.59865083,0.000399,30]
[401256916,1768079069955,-1825.8618153,0.000399,120]
[401256917,1768079070008,-197.31785595,0.000399,30]
[401256918,1768079070062,-9486.81498431,0.000399,30]
[401256919,1768079070114,-361.68810823,0.00039908,30]
[401256920,1768079070164,-169.0,0.00039962,90]
[401256921,1768079070218,-9377.60699041,0.0003998,120]
[401256922,1768079070267,-1000.0,0.00039999,120]
[401256923,1768079070335,-50000.0,0.0004,40]
[401256924,1768079070392,-250.0,0.0004,45]
[401256925,1768079070445,-300.0,0.0004,45]
[401256926,1768079070498,-161.00156432,0.0004,60]
[401256927,1768079070551,-806.1227813,0.0004,120]
[401256928,1768079070605,-3188.68135295,0.0004,120]
[401256929,1768079070656,-1000.0,0.0004,120]
[401256930,1768079070710,-200.0,0.0004,120]
[401256931,1768079070765,-250.0,0.0004,45]
[401256932,1768079070819,-250.0,0.0004,45]
[401256933,1768079070870,-250.0,0.0004,45]
[401256934,1768079070920,-250.0,0.0004,45]
[401256935,1768079070970,-250.0,0.0004,45]
[401256936,1768079071020,-210.41793143,0.0004,45]
[401256937,1768079071080,-510.3024651,0.0004,30]
[401256938,1768079071141,-213.13487869,0.0004,30]
[401256939,1768079071200,-1080.0,0.0004,120]
[401256940,1768079071262,-1031.03525263,0.0004,30]
[401256941,1768079071324,-201.51312737,0.0004,120]
[401256942,1768079071386,-1009.72525105,0.0004,30]
[401256943,1768079071447,-300.0,0.0004,30]
[401256944,1768079071507,-40000.0,0.0004,30]
[401256945,1768079071568,-5127.0,0.0004,120]
[401256946,1768079071629,-5261.83037355,0.0004,120]
[401256947,1768079071688,-1043.80106942,0.0004,60]
[401256948,1768079071747,-1100.0,0.0004,120]
[401256949,1768079071804,-14464.26845678,0.0004,30]
[401256950,1768079071863,-250.0,0.0004,45]
[401256951,1768079071920,-250.0,0.0004,45]
[401256952,1768079071986,-250.0,0.0004,45]
[401256953,1768079072044,-250.0,0.0004,45]
[401256954,1768079072100,-250.0,0.0004,45]
[401256955,1768079072155,-250.0,0.0004,45]
[401256956,1768079072213,-250.0,0.0004,45]
[401256957,1768079072270,-250.0,0.0004,45]
[401256958,1768079072327,-250.0,0.0004,45]
[401256959,1768079072382,-2594.2422635,0.0004,120]
[401256960,1768079072440,-40561.3603875,0.0004,120]
[401256961,1768079072495,-500.0,0.0004,120]
[401256962,1768079072547,-50000.0,0.0004,50]
[401256963,1768079072600,-50000.0,0.0004,60]
[401256964,1768079072648,-1027.0,0.0004,30]
[401256965,1768079072695,-2987.49800203,0.0004,120]
[401256966,1768079072742,-566.0,0.0004,120]
[401256967,1768079072786,-4181.78386805,0.0004,120]
[401256968,1768079072832,-149000.0,0.0004,90]
[401256969,1768079072881,-350.0,0.0004,60]
[401256970,1768079072931,-156794.8407274,0.0004,30]
[401256971,1768079072985,-150.0,0.0004,120]
[401256972,1768079073037,-30942.34140603,0.0004,120]
[401256973,1768079073089,-2000.0,0.0004,120]
[401256974,1768079073143,-3668.21,0.0004,120]
[401256975,1768079073196,-89373.0,0.0004,60]
[401256976,1768079073253,-126850.0,0.0004,60]
[401256977,1768079073309,-386.33058669,0.0004,120]
[401256978,1768079073363,-204.63099015,0.0004,120]
[401256979,1768079073418,-158.51509355,0.0004,120]
[401256980,1768079073471,-1089.17721656,0.0004,120]
[401256981,1768079073526,-278.78241031,0.0004,120]
[401256982,1768079073583,-239.19738022,0.0004,120]
[401256983,1768079073643,-1623.71767583,0.0004,30]
[401256984,1768079073703,-70883.21719214,0.0004,30]
[401256985,1768079073756,-13697.05607794,0.0004,120]
[401256986,1768079073808,-625.0,0.0004,30]
[401256987,1768079073861,-3377.3533251,0.0004,120]
[401256988,1768079073916,-7694.8,0.0004,30]
[401256989,1768079073968,-3932.59,0.0004,30]
[401256990,1768079074021,-152.0,0.0004,120]
[401256991,1768079074073,-152.0,0.0004,120]
[401256992,1768079074124,-6284.90201201,0.0004,120]
[401256993,1768079074179,-1606.58277688,0.0004,120]
[401256994,1768079074232,-500.0,0.0004,60]
[401256995,1768079074285,-799.58893802,0.0004,120]
[401256996,1768079074340,-3054.04,0.0004,30]
[401256997,1768079074395,-2113.18608577,0.0004,120]
[401256998,1768079074451,-1089.44,0.0004,120]
[401256999,1768079074507,-1308.59,0.0004,120]
[401257000,1768079074562,-338.74,0.0004,120]
[401257001,1768079074614,-22500.0,0.0004,120]
[401257002,1768079074666,-664.96,0.0004,120]
[401257003,1768079074715,-22500.0,0.0004,120]